[Event "Istanbul Open 2018"]
[Site "Istanbul"]
[Date "2018.09.06"]
[Round "7"]
[White "Guven, Oguz Kagan"]
[Black "Eryigit, Yakup"]
[Result "1/2-1/2"]
[ECO "B42"]
[WhiteElo "2022"]
[BlackElo "2030"]
[Annotator "NA RC"]
[PlyCount "100"]
[EventDate "2018.09.02"]
[EventType "swiss"]
[EventCountry "TUR"]
[SourceTitle "playchess.com"]
[Source "ChessBase"]
[SourceQuality "1"]
[TimeControl "5400+30"]

1. e4 {[%emt 0:02:30]} c5 {[%emt 0:01:30]} 2. Nf3 {[%emt 0:00:00]} e6 {[%emt 0:00:30]} 3. d4 {[%emt 0:00:00]} cxd4 {[%emt 0:00:30]} 4. Nxd4 {[%emt 0:00:00]} a6 {[%emt 0:00:30]} 5. Bd3 {[%emt 0:00:00]} Nf6 {[%emt 0:01:30]} 6. O-O {[%emt 0:00:30]} Qc7 {[%emt 0:00:30]} 7. c4 {[%emt 0:04:30]} Nc6 {[%emt 0:02:30]} 8. Nxc6 {[%emt 0:01:30]} dxc6 {[%emt 0:00:30]} 9. Bg5 {[%emt 0:02:30] B42: Sicilian: Kan Variation: 5 Bd3} (9. Be3 e5 10. f3 Be6 11. c5 Nd7 12. Qc2 Be7 13. Nd2 a5 14. Be2 O-O 15. b3 Rfd8 16. Rfd1 h6 17. a3 Bg5 18. Bf2 {0-1 (50) Dvoirys,S (2569)-Bocharov,D (2618) Irkutsk 2010}) 9... Bc5 {[%emt 0:21:30]} 10. Nc3 {[%emt 0:01:30]} e5 {[%emt 0:02:30]} 11. Rb1 $146 {[%emt 0:06:30]} ({Predecessor:} 11. h3 Be6 12. Qe2 h6 13. Be3 Nd7 14. Na4 Bxe3 15. Qxe3 b6 16. b4 O-O 17. a3 Rfd8 18. Rad1 {0-1 (36) Qin,O (1495)-Gong,D (2295) Auckland 2017}) 11... Bg4 {[%emt 0:04:30]} 12. Qc2 {[%emt 0:01:30]} Qe7 {[%emt 0:11:30]} 13. Be2 {[%emt 0:07:30]} Be6 {[%emt 0:02:30]} 14. Na4 {[%emt 0:11:30]} Bd4 {[%emt 0:00:30]} 15. b4 {[%emt 0:01:30]} O-O {[%emt 0:01:30]} 16. c5 {[%emt 0:00:30]} h6 {[%emt 0:00:30]} 17. Bh4 {[%emt 0:00:30]} g5 {[%emt 0:02:30]} 18. Bg3 {[%emt 0:00:30]} Kg7 {[%emt 0:01:30]} 19. Nb6 {[%emt 0:09:30]} Rad8 {[%emt 0:00:30]} 20. Bc4 {[%emt 0:02:30]} h5 {[%emt 0:01:30]} 21. h3 {[%emt 0:15:30]} h4 {[%emt 0:05:30]} 22. Bh2 {[%emt 0:00:00]} g4 {[%emt 0:00:30]} 23. hxg4 {[%emt 0:08:00]} Nxg4 {[%emt 0:01:30]} 24. Rb3 {[%emt 0:02:30]} Rh8 {[%emt 0:00:30]} 25. Bxe6 {[%emt 0:02:12]} fxe6 {[%emt 0:02:30]} 26. Nc4 {[%emt 0:08:01]} Rdf8 {[%emt 0:00:30]} 27. Ne3 {[%emt 0:02:48]} Bxe3 {[%emt 0:02:30]} 28. Rxe3 {[%emt 0:00:01]} Nxe3 {[%emt 0:00:30]} 29. Bxe5+ {[%emt 0:00:01]} Kg8 {[%emt 0:01:30]} 30. fxe3 {[%emt 0:00:00]} Rxf1+ {[%emt 0:00:30]} 31. Kxf1 {[%emt 0:00:11]} Rh5 {[%emt 0:01:30]} 32. Bd6 {[%emt 0:00:00]} Qf6+ {[%emt 0:01:30]} 33. Kg1 {[%emt 0:01:15]} h3 {[%emt 0:02:30]} 34. gxh3 {[%emt 0:00:01]} Rg5+ {[%emt 0:00:30]} 35. Kh2 {[%emt 0:00:19] [#]} e5 $1 {[%emt 0:04:30]} ({Less strong is} 35... Qf1 36. Bg3 $17) 36. Qe2 {[%emt 0:00:40]} Rg7 {[%emt 0:04:05]} 37. a3 {[%emt 0:00:58]} Rg6 {[%emt 0:04:42]} 38. Qc4+ {[%emt 0:01:06]} (38. Bb8 $142 Kf8 39. Bd6+ Ke8 40. Qb2) 38... Kg7 {[%emt 0:01:35]} 39. Qe2 {[%emt 0:00:01]} Rg5 {[%emt 0:02:37]} (39... b5 $142 40. Bc7 Kf8) 40. a4 {[%emt 0:01:10]} Kf7 {[%emt 0:03:30]} 41. Qa2+ {[%emt 0:01:12] [#]} Ke8 $1 {[%emt 0:00:23]} 42. b5 {[%emt 0:00:11]} cxb5 {[%emt 0:00:26]} 43. axb5 {[%emt 0:00:01] [#]} a5 $1 {[%emt 0:01:01]} 44. b6 {[%emt 0:00:34] [#]} Rg7 $2 {[%emt 0:02:37]} ({Günstiger ist} 44... Kd8 $1 $19 45. Qd2 Kc8) 45. Qa4+ $1 {[%emt 0:00:42]} Rd7 {[%emt 0:00:58]} (45... Kd8 $5 46. Bc7+ $8 Ke7 47. Bd6+ Kf7 48. Qd7+ Kg6 49. Qe8+ Qf7 50. Qxe5 Qf2+ 51. Kh1 a4 $11) 46. Qxa5 {[%emt 0:03:24]} Qf2+ {[%emt 0:00:54]} 47. Kh1 {[%emt 0:00:01]} Qf3+ {[%emt 0:00:21]} 48. Kh2 {[%emt 0:00:02]} Qf2+ {[%emt 0:02:34]} 49. Kh1 {[%emt 0:00:01]} Qf3+ {[%emt 0:00:50]} 50. Kh2 {[%emt 0:00:01]} Qf2+ $11 {[%emt 0:00:05]} 1/2-1/2

[Event "Istanbul Open 2018"]
[Site "Istanbul"]
[Date "2018.09.06"]
[Round "7"]
[White "Kuseyri, Mehmet Ali"]
[Black "Asgarov, Nihad"]
[Result "1/2-1/2"]
[ECO "D35"]
[WhiteElo "1962"]
[BlackElo "1937"]
[Annotator "NA RC"]
[PlyCount "111"]
[EventDate "2018.09.02"]
[EventType "swiss"]
[EventCountry "TUR"]
[SourceTitle "playchess.com"]
[Source "ChessBase"]
[SourceQuality "1"]
[TimeControl "5400+30"]

1. d4 {[%emt 0:00:30]} d5 {[%emt 0:00:30]} 2. c4 {[%emt 0:00:00]} e6 {[%emt 0:00:00]} 3. Nc3 {[%emt 0:00:00]} Be7 {[%emt 0:00:00]} 4. Nf3 {[%emt 0:00:00]} Nf6 {[%emt 0:00:30]} 5. cxd5 {[%emt 0:01:00]} exd5 {[%emt 0:00:00]} 6. Bf4 {[%emt 0:00:00]} O-O {[%emt 0:01:00]} 7. Qc2 {[%emt 0:01:00]} c6 {[%emt 0:03:30]} 8. h3 {[%emt 0:01:30] D35: Queen's Gambit Declined: Exchange Variation} Bd6 {[%emt 0:05:30]} 9. Bg5 {[%emt 0:01:30]} h6 {[%emt 0:00:30]} 10. Bh4 {[%emt 0:00:30]} Nbd7 $146 {[%emt 0:02:30]} ({Predecessor:} 10... g5 11. Bg3 Bxg3 12. fxg3 Nh5 13. Kf2 Qd6 14. e4 Nxg3 {0-1 (46) Ivanisevic,I (2613)-Kramnik,V (2760) Tromsoe 2014}) 11. g4 {[%emt 0:03:30]} Qc7 {[%emt 0:02:30]} 12. g5 {[%emt 0:05:30]} hxg5 {[%emt 0:00:00]} 13. Nxg5 {[%emt 0:00:30]} Re8 {[%emt 0:02:00]} 14. O-O-O {[%emt 0:02:30]} Nf8 {[%emt 0:00:30]} 15. Rg1 {[%emt 0:00:30]} Bf4+ {[%emt 0:03:30]} 16. e3 {[%emt 0:01:30]} Rxe3 {[%emt 0:00:00]} 17. Kb1 {[%emt 0:00:30]} Re8 {[%emt 0:13:00]} 18. Bd3 {[%emt 0:00:30]} Ng6 {[%emt 0:13:30]} 19. Bxg6 {[%emt 0:02:30]} fxg6 {[%emt 0:02:30]} 20. Qxg6 {[%emt 0:01:30]} Bxg5 {[%emt 0:00:30]} 21. Rxg5 {[%emt 0:02:30]} Qf7 {[%emt 0:00:00]} 22. Qxf7+ {[%emt 0:02:30]} Kxf7 {[%emt 0:00:00]} 23. Rdg1 {[%emt 0:02:30]} Rg8 {[%emt 0:00:30]} 24. R1g3 {[%emt 0:01:30]} g6 {[%emt 0:04:30]} 25. Re5 {[%emt 0:03:30]} Rh8 {[%emt 0:02:30]} 26. Bxf6 {[%emt 0:01:30]} Kxf6 {[%emt 0:00:30]} 27. Ree3 {[%emt 0:01:30]} Bf5+ {[%emt 0:00:30]} 28. Kc1 {[%emt 0:00:30]} Rh4 {[%emt 0:00:00]} 29. Ne2 {[%emt 0:00:30]} Rah8 {[%emt 0:00:00]} 30. Ra3 {[%emt 0:03:30]} a6 {[%emt 0:00:30]} 31. Rab3 {[%emt 0:00:00]} R8h7 {[%emt 0:00:30]} 32. Rge3 {[%emt 0:02:00]} Rxh3 {[%emt 0:00:30]} 33. Ng3 {[%emt 0:00:30]} R3h4 {[%emt 0:02:30]} 34. Ne2 {[%emt 0:00:00]} Rh2 {[%emt 0:04:30]} 35. Rf3 {[%emt 0:03:00]} Rh1+ {[%emt 0:02:30]} 36. Kd2 {[%emt 0:00:00]} R1h4 {[%emt 0:02:30]} 37. Kc3 {[%emt 0:02:00]} Re4 {[%emt 0:01:30]} 38. Ng3 {[%emt 0:01:30]} Re1 {[%emt 0:00:30]} 39. Kb4 {[%emt 0:01:30]} Rc1 {[%emt 0:01:30]} 40. Rbc3 {[%emt 0:01:30]} Rd1 {[%emt 0:01:30]} 41. Rf4 $2 {[%emt 0:02:30]} (41. Nxf5 $17 {was called for.} gxf5 42. Rcd3 Rxd3 43. Rxd3) 41... Rd2 {[%emt 0:01:30]} 42. Rcf3 $19 {[%emt 0:03:30]} Rxb2+ {[%emt 0:02:30]} 43. Ka3 {[%emt 0:00:00]} Rd2 {[%emt 0:00:30]} 44. Nxf5 {[%emt 0:00:00]} gxf5 {[%emt 0:00:00]} 45. Rxf5+ {[%emt 0:00:00]} Ke6 {[%emt 0:01:00]} 46. Rf6+ {[%emt 0:01:00]} Ke7 {[%emt 0:00:00]} 47. R6f4 {[%emt 0:00:00]} Kd7 {[%emt 0:05:00]} 48. Kb3 {[%emt 0:01:00]} Kc7 {[%emt 0:00:00]} 49. a3 {[%emt 0:00:30]} Kb6 {[%emt 0:02:00]} 50. Kc3 {[%emt 0:00:30]} Rd1 {[%emt 0:00:30]} 51. Kc2 {[%emt 0:00:00]} Rhh1 {[%emt 0:00:00]} 52. Rb3+ {[%emt 0:00:00]} Ka5 {[%emt 0:03:00]} 53. Rxb7 {[%emt 0:01:30]} Rc1+ {[%emt 0:01:30]} 54. Kd2 {[%emt 0:00:00]} Rhd1+ {[%emt 0:00:30]} 55. Ke2 {[%emt 0:00:00]} Re1+ {[%emt 0:00:30]} 56. Kd2 {[%emt 0:04:30]} 1/2-1/2

[Event "Istanbul Open 2018"]
[Site "Istanbul"]
[Date "2018.09.06"]
[Round "7"]
[White "Tirak, Mert"]
[Black "Ozkan, Taha"]
[Result "1-0"]
[ECO "C00"]
[WhiteElo "1941"]
[BlackElo "1997"]
[Annotator "NA RC"]
[PlyCount "69"]
[EventDate "2018.09.02"]
[EventType "swiss"]
[EventCountry "TUR"]
[SourceTitle "playchess.com"]
[Source "ChessBase"]
[SourceQuality "1"]
[TimeControl "5400+30"]

1. e4 {[%emt 0:27:30]} e6 {[%emt 0:00:30]} 2. b3 {[%emt 0:02:30]} d5 {[%emt 0:00:00]} 3. Bb2 {[%emt 0:00:00]} dxe4 {[%emt 0:00:00]} 4. Nc3 {[%emt 0:00:00] C00: French: Unusual White 2nd moves} Nf6 {[%emt 0:00:00]} 5. Nge2 {[%emt 0:00:30]} (5. Qe2 Nc6 6. Nxe4 Nxe4 7. Qxe4 Qd5 8. Qxd5 exd5 9. O-O-O f6 10. Ne2 Bc5 11. Nf4 Ne7 12. Re1 Kf7 13. f3 Bd6 {½-½ (35) Gelashvili,T (2556)-Azaladze,S (2464) Tbilisi 2017}) 5... b6 {[%emt 0:02:00]} 6. Ng3 {[%emt 0:00:00]} Bb7 {[%emt 0:00:30]} 7. Qe2 {[%emt 0:00:00]} Be7 $146 {[%emt 0:00:30]} ({Predecessor:} 7... Ba6 8. Qe3 Bc5 9. Qf4 g5 10. Qxg5 Rg8 11. Qf4 Rg4 12. Qh6 Rg6 13. Qf4 Rg4 14. Qh6 {½-½ (14) De Filippis,F (2424)-Delizia,C (2344) ICCF email 2012}) 8. Ngxe4 {[%emt 0:00:30]} O-O {[%emt 0:01:30]} 9. O-O-O {[%emt 0:00:30]} Nc6 {[%emt 0:06:30]} 10. f3 {[%emt 0:03:30]} a5 {[%emt 0:06:30]} 11. a4 {[%emt 0:01:30]} Nd4 {[%emt 0:04:30]} 12. Qf2 {[%emt 0:00:30]} e5 {[%emt 0:12:30]} 13. g4 {[%emt 0:03:30]} c6 {[%emt 0:09:30]} 14. Nxf6+ {[%emt 0:11:30]} Bxf6 {[%emt 0:00:00]} 15. h4 {[%emt 0:00:30]} b5 {[%emt 0:03:00]} 16. Qg3 {[%emt 0:11:30]} c5 {[%emt 0:06:30]} 17. g5 {[%emt 0:03:30]} Be7 {[%emt 0:11:30]} 18. Nxb5 {[%emt 0:00:30]} Bxf3 {[%emt 0:01:30] [#]} 19. Nxd4 $1 {[%emt 0:01:30]} Bxh1 {[%emt 0:02:30]} 20. Nf5 {[%emt 0:01:30]} Re8 $2 {[%emt 0:04:30]} (20... Bd6 21. Re1 (21. Bxe5 Bxe5 22. Qxe5 f6 $14) 21... Bb7) 21. Nxg7 {[%emt 0:09:30]} Kxg7 {[%emt 0:03:30]} 22. Qxe5+ {[%emt 0:00:30]} f6 {[%emt 0:00:30]} 23. gxf6+ {[%emt 0:00:30]} Bxf6 {[%emt 0:00:30]} 24. Qg5+ {[%emt 0:00:00]} Kf7 {[%emt 0:02:30]} 25. Bc4+ {[%emt 0:00:00]} Re6 {[%emt 0:00:30]} 26. Rf1 {[%emt 0:02:00]} Ke7 {[%emt 0:06:35]} 27. Bxf6+ {[%emt 0:00:19]} Rxf6 {[%emt 0:00:40]} 28. Qxf6+ {[%emt 0:00:11]} Kd7 {[%emt 0:00:06]} 29. Qe6+ {[%emt 0:00:58]} Kc7 {[%emt 0:00:05]} 30. Rf7+ {[%emt 0:00:23]} Kb8 {[%emt 0:00:31]} 31. Qe5+ {[%emt 0:00:09]} Kc8 {[%emt 0:00:23]} 32. Be6+ {[%emt 0:00:30]} Qd7 {[%emt 0:00:39]} 33. Bxd7+ {[%emt 0:00:30]} Kb7 {[%emt 0:00:45]} 34. Bb5+ {[%emt 0:00:00]} Kc8 {[%emt 0:00:08]} 35. Qh8# {[%emt 0:00:00]} 1-0

[Event "Istanbul Open 2018"]
[Site "Istanbul"]
[Date "2018.09.06"]
[Round "7"]
[White "Aydin, Kaan Ayhan"]
[Black "Gonullu, Muhammed Sinan"]
[Result "1/2-1/2"]
[ECO "B27"]
[WhiteElo "1877"]
[BlackElo "1816"]
[Annotator "NA RC"]
[PlyCount "152"]
[EventDate "2018.09.02"]
[EventType "swiss"]
[EventCountry "TUR"]
[SourceTitle "playchess.com"]
[Source "ChessBase"]
[SourceQuality "1"]
[TimeControl "5400+30"]

1. e4 {[%emt 0:00:30]} c5 {[%emt 0:03:30]} 2. Nf3 {[%emt 0:00:30]} g6 {[%emt 0:00:00]} 3. d4 {[%emt 0:00:00]} Bg7 {[%emt 0:00:00]} 4. dxc5 {[%emt 0:00:00]} Qa5+ {[%emt 0:00:30]} 5. Nc3 {[%emt 0:00:30]} Qxc5 {[%emt 0:03:30]} 6. Nd5 {[%emt 0:02:30]} Qa5+ {[%emt 0:03:30] B27: Sicilian: 2 Nf3, unusual Black 2nd moves} 7. Bd2 {[%emt 0:02:30]} Qd8 {[%emt 0:00:00]} 8. Bc3 {[%emt 0:05:30]} Bxc3+ {[%emt 0:00:00]} 9. Nxc3 {[%emt 0:00:30]} Nc6 {[%emt 0:00:30]} 10. Qd2 {[%emt 0:00:30]} (10. Bc4 Nf6 11. e5 Nh5 12. Qd2 Qa5 13. O-O-O Qb4 14. Bb3 {1-0 (35) Varga,Z (2441)-Petakov,U (2348) Stari Banovci 2013}) 10... d6 {[%emt 0:00:00]} 11. O-O-O {[%emt 0:00:30]} Bg4 {[%emt 0:01:00]} 12. h3 $146 {[%emt 0:00:30]} ({Predecessor:} 12. Nd5 Rc8 13. Bb5 a6 14. Bxc6+ bxc6 {½-½ (31) Vegh,E (2260)-Hajbok,R (2261) Hungary 2010}) 12... Bxf3 {[%emt 0:00:00]} 13. gxf3 {[%emt 0:00:00]} Qa5 {[%emt 0:02:00]} 14. Kb1 {[%emt 0:00:00]} O-O-O {[%emt 0:00:30]} 15. f4 {[%emt 0:04:30]} Nf6 {[%emt 0:01:30]} 16. Rg1 {[%emt 0:03:30]} h6 {[%emt 0:04:30]} 17. Bc4 {[%emt 0:00:30]} e6 {[%emt 0:00:30]} 18. Bb3 {[%emt 0:02:30]} Kb8 {[%emt 0:02:30]} 19. Rg3 {[%emt 0:03:30]} a6 {[%emt 0:07:30]} 20. Rd3 {[%emt 0:04:30]} Ne8 {[%emt 0:00:30]} 21. Qe3 {[%emt 0:10:30]} Qc7 {[%emt 0:09:30]} 22. Na4 {[%emt 0:11:30]} b5 {[%emt 0:01:30]} 23. Nc3 {[%emt 0:00:30]} Qa7 {[%emt 0:00:30]} 24. Qxa7+ {[%emt 0:05:30]} Kxa7 {[%emt 0:00:30]} 25. Ne2 {[%emt 0:01:30]} Kb6 {[%emt 0:02:30]} 26. c4 {[%emt 0:01:30]} Na5 {[%emt 0:11:30]} 27. cxb5 {[%emt 0:00:30]} axb5 {[%emt 0:00:30]} 28. Nd4 {[%emt 0:05:30]} Nf6 {[%emt 0:00:30]} 29. f3 {[%emt 0:00:30]} Nb7 {[%emt 0:05:30]} 30. Ne2 {[%emt 0:14:44]} Rd7 {[%emt 0:00:30]} 31. Rc3 {[%emt 0:00:41]} Rc7 {[%emt 0:00:30]} 32. Rxc7 {[%emt 0:00:41]} Kxc7 {[%emt 0:00:30]} 33. Nd4 {[%emt 0:00:46]} Kb6 {[%emt 0:00:30]} 34. Rc1 {[%emt 0:00:46]} Nc5 {[%emt 0:00:00]} 35. Bd1 {[%emt 0:06:03]} e5 {[%emt 0:01:00]} 36. fxe5 {[%emt 0:01:48]} dxe5 {[%emt 0:00:00]} 37. b4 {[%emt 0:01:35]} exd4 {[%emt 0:00:00]} 38. Rxc5 {[%emt 0:00:57]} Rd8 {[%emt 0:00:30]} 39. Kc1 {[%emt 0:00:31]} Ne8 {[%emt 0:00:30]} 40. Bb3 {[%emt 0:01:32]} Nc7 {[%emt 0:04:30]} 41. Bd5 {[%emt 0:04:57]} Rd6 {[%emt 0:01:30]} 42. a3 {[%emt 0:02:13]} Nxd5 {[%emt 0:01:30]} 43. exd5 {[%emt 0:00:22]} Rf6 {[%emt 0:00:30]} 44. Kd2 {[%emt 0:00:16]} g5 {[%emt 0:00:30]} 45. Kd3 {[%emt 0:00:28]} Rxf3+ {[%emt 0:01:30]} 46. Kxd4 {[%emt 0:00:03]} Rxa3 {[%emt 0:00:30]} 47. Rc6+ {[%emt 0:01:23]} Kb7 {[%emt 0:00:00]} 48. Rxh6 {[%emt 0:00:11]} f5 {[%emt 0:01:00]} 49. Rh5 {[%emt 0:01:04]} Rg3 {[%emt 0:00:30]} 50. Kc5 {[%emt 0:00:07]} f4 {[%emt 0:00:30]} 51. Rh7+ {[%emt 0:00:57]} ({Resist} 51. Kxb5 $6 Kc7 $16) 51... Kc8 {[%emt 0:00:30] [#]} 52. Kxb5 {[%emt 0:00:12]} (52. Kc6 $1 $16 {[%cal Rh7h8]} Rc3+ 53. Kxb5) 52... Rc3 {[%emt 0:01:30]} 53. Rg7 {[%emt 0:00:30]} Rxh3 {[%emt 0:01:30]} 54. Rxg5 {[%emt 0:00:06]} Kc7 {[%emt 0:00:00]} 55. Rf5 {[%emt 0:00:10]} Rf3 {[%emt 0:01:00]} 56. Kc5 {[%emt 0:00:21]} Rc3+ {[%emt 0:00:00]} 57. Kd4 {[%emt 0:00:18]} Rb3 {[%emt 0:00:00]} 58. Kc4 {[%emt 0:00:13]} Rf3 {[%emt 0:00:30]} 59. b5 {[%emt 0:00:08]} Rf1 {[%emt 0:00:00]} 60. Rf7+ {[%emt 0:01:35]} Kd6 $1 {[%emt 0:00:00]} 61. b6 {[%emt 0:00:16]} f3 {[%emt 0:00:30]} 62. Rf6+ {[%emt 0:02:42]} Kd7 {[%emt 0:00:30]} 63. Rf7+ {[%emt 0:01:37]} Kd6 {[%emt 0:00:00]} 64. b7 {[%emt 0:00:00]} Rb1 {[%emt 0:01:00]} 65. Rxf3 {[%emt 0:00:56]} Rxb7 {[%emt 0:00:00]} 66. Rf6+ {[%emt 0:00:11]} Kc7 {[%emt 0:01:00]} 67. Rf7+ {[%emt 0:00:09]} Kc8 {[%emt 0:00:30]} 68. Rxb7 {[%emt 0:00:03]} Kxb7 {[%emt 0:00:00]} 69. Kd4 {[%emt 0:00:33]} Kc7 {[%emt 0:00:00]} 70. Ke5 {[%emt 0:00:10]} Kd7 {[%emt 0:00:00]} 71. d6 {[%emt 0:00:06]} Kd8 {[%emt 0:00:00]} 72. Kf6 {[%emt 0:00:06]} Kd7 {[%emt 0:00:30]} 73. Ke5 {[%emt 0:00:03]} Kd8 $11 {[%emt 0:01:30]} 74. Ke6 {[%emt 0:00:08]} Ke8 {[%emt 0:00:00]} 75. Kf5 {[%emt 0:00:29]} Kd7 {[%emt 0:00:00]} 76. Ke4 {[%emt 0:00:01]} Kxd6 {[%emt 0:00:30]} 1/2-1/2

[Event "Istanbul Open 2018"]
[Site "Istanbul"]
[Date "2018.09.06"]
[Round "7"]
[White "Emir, Emirhan"]
[Black "Sarikavak, Serdar Ihsan"]
[Result "1/2-1/2"]
[ECO "E85"]
[WhiteElo "1852"]
[BlackElo "1798"]
[Annotator "NA RC"]
[PlyCount "127"]
[EventDate "2018.09.02"]
[EventType "swiss"]
[EventCountry "TUR"]
[SourceTitle "playchess.com"]
[Source "ChessBase"]
[SourceQuality "1"]
[TimeControl "5400+30"]

1. d4 {[%emt 0:00:30]} Nf6 {[%emt 0:00:30]} 2. c4 {[%emt 0:00:00]} g6 {[%emt 0:00:30]} 3. Nc3 {[%emt 0:00:00]} Bg7 {[%emt 0:00:00]} 4. e4 {[%emt 0:00:00]} d6 {[%emt 0:00:00]} 5. f3 {[%emt 0:00:00]} O-O {[%emt 0:00:30]} 6. Be3 {[%emt 0:00:30]} e5 {[%emt 0:00:00]} 7. Nge2 {[%emt 0:00:30]} Nc6 {[%emt 0:03:00]} 8. d5 {[%emt 0:00:00]} Ne7 {[%emt 0:00:30]} 9. Qd2 {[%emt 0:00:00]} Nd7 {[%emt 0:00:30]} 10. g4 {[%emt 0:01:30]} f5 {[%emt 0:01:30]} 11. gxf5 {[%emt 0:00:30] E85: Königsindisch (Sämisch-Angriff)} gxf5 {[%emt 0:00:30]} 12. O-O-O {[%emt 0:01:30]} f4 {[%emt 0:05:30]} 13. Bf2 {[%emt 0:00:30]} a6 {[%emt 0:09:30]} (13... Bf6 14. h4 Kh8 15. Bh3 a6 16. Kb1 Rb8 17. Nc1 b6 18. h5 Nc5 19. Bxc8 Qxc8 {1-0 (73) Stopa,J (2469)-Panchanatham,V (2278) Las Vegas 2015}) 14. Kb1 {[%emt 0:02:30]} Ng6 {[%emt 0:07:30]} 15. h4 $146 {[%emt 0:03:30]} ({Vorgänger:} 15. Nc1 Bf6 16. h4 h5 17. Bh3 Kh7 18. Rdg1 Rg8 {1-0 (52) Kraidman,Y (2307)-Smith,I Port Erin 2004}) 15... h5 {[%emt 0:05:30]} 16. Bh3 {[%emt 0:02:30]} Bf6 {[%emt 0:14:30]} 17. Rdg1 {[%emt 0:08:30]} Kh7 {[%emt 0:03:30]} 18. Bf5 {[%emt 0:00:30]} Rg8 {[%emt 0:00:30]} 19. Nc1 {[%emt 0:02:30]} b6 {[%emt 0:14:30]} 20. Qc2 {[%emt 0:03:30]} a5 {[%emt 0:03:30]} 21. Be1 {[%emt 0:02:30]} Nc5 {[%emt 0:03:30]} 22. Bxg6+ {[%emt 0:02:30]} Rxg6 {[%emt 0:00:00]} 23. Rxg6 {[%emt 0:00:00]} Kxg6 {[%emt 0:00:00]} 24. Rg1+ {[%emt 0:00:00]} Kh7 {[%emt 0:04:30]} 25. Nb5 {[%emt 0:02:30]} Na6 {[%emt 0:00:30]} 26. Nd3 {[%emt 0:03:30]} Bg7 {[%emt 0:08:20]} 27. Qg2 {[%emt 0:03:30]} Qf6 {[%emt 0:00:31]} 28. Nxf4 {[%emt 0:01:30]} Bg4 {[%emt 0:06:57]} 29. fxg4 {[%emt 0:03:30]} Qxf4 {[%emt 0:00:23]} 30. Bd2 {[%emt 0:01:30]} Qxg4 {[%emt 0:00:51]} 31. Qxg4 {[%emt 0:00:30]} hxg4 {[%emt 0:00:02]} 32. Rxg4 {[%emt 0:00:30]} Bh6 {[%emt 0:01:43]} 33. Bxh6 {[%emt 0:06:30]} Kxh6 {[%emt 0:00:01]} 34. Kc2 {[%emt 0:00:30]} Rf8 {[%emt 0:01:27]} 35. a3 {[%emt 0:03:30]} Rf7 {[%emt 0:05:24]} 36. Nc3 {[%emt 0:05:30]} Kh5 {[%emt 0:00:58]} 37. Rg8 {[%emt 0:01:30]} Kxh4 {[%emt 0:00:40]} 38. Ra8 {[%emt 0:03:30]} Nc5 {[%emt 0:00:02]} 39. b4 {[%emt 0:00:30]} Rf2+ {[%emt 0:00:05]} 40. Kd1 {[%emt 0:00:30]} axb4 {[%emt 0:00:41]} 41. axb4 {[%emt 0:00:00]} Nd3 {[%emt 0:01:09]} 42. Rc8 {[%emt 0:03:00]} Rf7 {[%emt 0:00:35]} 43. Nb5 {[%emt 0:01:30]} Nf2+ {[%emt 0:00:36]} 44. Ke2 {[%emt 0:01:30]} Nxe4 {[%emt 0:00:03]} 45. Nxc7 {[%emt 0:00:30]} Ng3+ {[%emt 0:00:54]} 46. Ke1 {[%emt 0:00:30]} e4 {[%emt 0:00:29]} 47. Kd2 {[%emt 0:02:30]} Rf2+ {[%emt 0:00:26]} 48. Kc3 {[%emt 0:01:30]} e3 {[%emt 0:00:39]} 49. Re8 {[%emt 0:00:30]} e2 {[%emt 0:00:30]} 50. Kd2 {[%emt 0:02:30]} Rf1 {[%emt 0:00:43]} 51. Rxe2 {[%emt 0:00:30]} Nxe2 {[%emt 0:00:08]} 52. Kxe2 {[%emt 0:00:30]} Rf8 {[%emt 0:00:37]} 53. Kd3 {[%emt 0:00:00]} Kg4 {[%emt 0:00:19]} 54. Nb5 {[%emt 0:01:00]} Rf6 {[%emt 0:00:41]} 55. Na7 {[%emt 0:00:30]} Rf3+ {[%emt 0:00:25]} 56. Kd4 {[%emt 0:00:30]} Rf4+ {[%emt 0:00:13]} 57. Kc3 {[%emt 0:00:30]} Rf8 {[%emt 0:00:22]} 58. Kb3 {[%emt 0:01:30]} Kf5 {[%emt 0:00:40]} 59. Nc6 {[%emt 0:00:30]} Ra8 {[%emt 0:00:34]} 60. Nd4+ {[%emt 0:01:30]} Ke4 {[%emt 0:00:37]} 61. Nb5 {[%emt 0:00:30]} Ke5 {[%emt 0:00:27]} 62. Kb2 {[%emt 0:00:30]} Rh8 {[%emt 0:00:36]} 63. Kb3 {[%emt 0:00:30]} Ra8 {[%emt 0:00:30]} (63... Rb8 $17 64. Nc3 Rf8) 64. Kb2 $17 {[%emt 0:00:00]} 1/2-1/2